Workbook

Sheet Calculator
B2: # People in household: | C2: 2
B3: # People 65 or over | C3: 1
B4: State | C4: Tennessee
B5: County | C5: Hamilton | D5: =C5&" County" -> Hamilton County | V5: Secured Debts | Y5: Other Expenses
B6: # Vehicles > | C6: 2 | M6: Household Monthly Income & Expenses | R6: Claimed | S6: Allowable | T6: Manual Allowable | V6: Lender | W6: Amount | Y6: Other Expenses: | Z6: Amount
C7: Payment | D7: Allowable Pmt | M7: 20 | N7: Wages (Taxpayer) | P7: 35 | Q7: Food, Clothing and Misc.
B8: Vehicle 1 Payment | D8: =IF(C8<Transportation!B8,C8,Transportation!B8) -> 0 | M8: 21 | N8: Wages (Spouse) | P8: 36 | Q8: Housing and Utilities
B9: Vehicle 2 Payment | D9: =IF(C9<Transportation!B8,C9,Transportation!B8) -> 0 | M9: 22 | N9: Interest - Dividends | P9: 37 | Q9: Vehicle Ownership Costs
C10: =IF(OR(C6=0,C6=""),0,SUM(C8:C9)) -> 0 | D10: =SUM(D8:D9) -> 0 | M10: 23 | N10: Net Business Income | P10: 38 | Q10: Vehicle Operating Costs
B11: All Vehicles Operating | C11: Insurance | E11: Gas | F11: Maint. | G11: Other | H11: Operating | I11: Manual Input | M11: 24 | N11: Net Rental Income | P11: 39 | Q11: Public Transportation
C12: 0 | E12: 0 | F12: 0 | G12: 0 | H12: =SUM(C12:G12) -> 0 | I12: 0 | M12: 25 | N12: Distributions (K-1, IRA, etc.) | P12: 40 | Q12: Health Insurance
M13: 26 | N13: Pension (Taxpayer) | P13: 41 | Q13: Out of Pocket Health Care Costs
M14: 27 | N14: Pension (Spouse) | P14: 42 | Q14: Court Ordered Payments
M15: 28 | N15: Social Security (Taxpayer) | P15: 43 | Q15: Child/Dependent Care
M16: 29 | N16: Social Security (Spouse) | P16: 44 | Q16: Life Insurance
M17: 30 | N17: Child Support | P17: 45 | Q17: Current year taxes (Income/FICA)
M18: 31 | N18: Alimony | P18: 46 | Q18: Secured Debts (Attach list) | R18: =SUM(SecDebtTbl[[#All],[Amount]]) -> 0
N19: Other Income (Specify below) | P19: 47 | Q19: Delinquent State or Local Taxes
M20: 32 | P20: 48 | Q20: Other Expenses (Attach list) | R20: =SUM(OtherExpTbl[[#All],[Amount]]) -> 0
M21: 33 | P21: 49 | Q21: Total Living Exps (add lines 35-48) | R21: =SUM(R7:R20) -> 0 | S21: =SUM(S7:S20) -> 0 | T21: =SUM(T7:T20) -> 0
M22: 34 | N22: Total Income (add lines 20-33) | O22: =SUM(O7:O21) -> 0 | P22: 50 | Q22: Net difference (Line 34 minus 49) | R22: =SUM(O22-R21) -> 0 | S22: =SUM(O22-S21) -> 0 | T22: =SUM(O22-T21) -> 0
M27: Sole Proprietorship Information | R27: Claimed | S27: Allowable | V27: Other Sole Prop Expenses
M28: 67 | N28: Gross Receipts | P28: 77 | Q28: Materials Purchased | V28: Other SP Expenses: | W28: Amount
M29: 68 | N29: Gross Rental Income | P29: 78 | Q29: Inventory Purchased
M30: 69 | N30: Interest | P30: 79 | Q30: Gross Wages & Salaries
M31: 70 | N31: Dividends | P31: 80 | Q31: Rent
M32: 71 | N32: Cash Receipts not incl in 67-70 | P32: 81 | Q32: Supplies
N33: Other Income (Specify below) | P33: 82 | Q33: Utilities/Telephone
M34: 72 | P34: 83 | Q34: Vehicle Gasoline/Oil
M35: 73 | P35: 84 | Q35: Repairs & Maintenance
M36: 74 | P36: 85 | Q36: Insurance
M37: 75 | P37: 86 | Q37: Current Taxes
M38: 76 | N38: Total Income (Add 67 through 75) | O38: =SUM(O28:O37) -> 0 | P38: 87 | Q38: Other Exp, incl install pmts (Specify) | R38: =SUM(OtherSPExpTb[[#All],[Amount]]) -> 0
P39: 88 | Q39: Total Exps (Add lines 77 through 87) | R39: =SUM(R28:R38) -> 0
P40: 89 | Q40: Net Bus Income (Line 76 minus 88) | R40: =O38-R39 -> 0

Sheet National Food
A1: Expense | B1: 1 | C1: 2 | D1: 3 | E1: 4 | F1: 5 | G1: Computed
A2: Food | B2: 466 | C2: 777 | D2: 936 | E2: 1123 | F2: =E2 -> 1123 | G2: =_xlfn.IFNA(LOOKUP(Calculator!$C$2,$B$1:$F$1,$B2:$F2),0) -> 777
A3: Housekeeping supplies | B3: 47 | C3: 80 | D3: 85 | E3: 90 | F3: 90 | G3: =_xlfn.IFNA(LOOKUP(Calculator!$C$2,$B$1:$F$1,$B3:$F3),0) -> 80
A4: Apparel & services | B4: 96 | C4: 145 | D4: 207 | E4: 252 | F4: 252 | G4: =_xlfn.IFNA(LOOKUP(Calculator!$C$2,$B$1:$F$1,$B4:$F4),0) -> 145
A5: Personal care products & services | B5: 43 | C5: 78 | D5: 91 | E5: 97 | F5: 97 | G5: =_xlfn.IFNA(LOOKUP(Calculator!$C$2,$B$1:$F$1,$B5:$F5),0) -> 78
A6: Miscellaneous | B6: 189 | C6: 309 | D6: 381 | E6: 431 | F6: 431 | G6: =_xlfn.IFNA(LOOKUP(Calculator!$C$2,$B$1:$F$1,$B6:$F6),0) -> 309
A7: Total | B7: 841 | C7: 1389 | D7: 1700 | E7: 1993 | F7: 1993 | G7: =_xlfn.IFNA(LOOKUP(Calculator!$C$2,$B$1:$F$1,$B7:$F7)+C11,0) -> 1389
A10: More than four persons | B10: Additional Persons Amount
A11: For each additional person, add to four-person total allowance: | B11: 356 | C11: =IF(Calculator!C2>E1,(Calculator!C2-'National Food'!E1)*'National Food'!B11,0) -> 0

Sheet OOP Healthcare
A1: Age | B1: Out of Pocket Costs
A2: Under 65 | B2: 79
A3: 65 and Older | B3: 154
A6: Under 65 | B6: =(Calculator!C2-Calculator!C3)*'OOP Healthcare'!B2 -> 79
A7: 65 & older | B7: =Calculator!C3*'OOP Healthcare'!B3 -> 154
A8: Total | B8: =SUM(B6:B7) -> 233

Sheet Housing Standards
C1: 1 | D1: 2 | E1: 3 | F1: 4 | G1: 5 | J1: =SUBSTITUTE(ADDRESS(1, MATCH(Calculator!C2,'Housing Standards'!A1:G1), 4), "1", "") -> D | K1: =_xlfn.XLOOKUP(Calculator!D5&Calculator!C4,Table1[County]&Table1[State Name],Table1[Lookup]) -> 2542 | L1: =J1&K1 -> D2542
A2: County | B2: State Name | C2: 2023 Published ALE Housing Expense for a Family of 1 | D2: 2023 Published ALE Housing Expense for a Family of 2 | E2: 2023 Published ALE Housing Expense for a Family of 3 | F2: 2023 Published ALE Housing Expense for a Family of 4 | G2: 2023 Published ALE Housing Expense for a Family of 5 | H2: Lookup | K2: =_xlfn.IFNA(INDIRECT(L1),0) -> 1843 | N2: States
A3: Autauga County | B3: Alabama | C3: 1483 | D3: 1741 | E3: 1835 | F3: 2046 | G3: 2079 | H3: =ROW() -> 3 | N3: =_xlfn.UNIQUE(B3:B3224) -> Alabama
A4: Baldwin County | B4: Alabama | C4: 1617 | D4: 1899 | E4: 2001 | F4: 2231 | G4: 2267 | H4: =ROW() -> 4 | N4: Alaska
A5: Barbour County | B5: Alabama | C5: 1278 | D5: 1501 | E5: 1582 | F5: 1764 | G5: 1792 | H5: =ROW() -> 5 | N5: Arizona
A6: Bibb County | B6: Alabama | C6: 1323 | D6: 1554 | E6: 1637 | F6: 1825 | G6: 1855 | H6: =ROW() -> 6 | N6: Arkansas
A7: Blount County | B7: Alabama | C7: 1405 | D7: 1650 | E7: 1739 | F7: 1939 | G7: 1970 | H7: =ROW() -> 7 | N7: California
A8: Bullock County | B8: Alabama | C8: 1494 | D8: 1755 | E8: 1849 | F8: 2062 | G8: 2095 | H8: =ROW() -> 8 | N8: Colorado
A9: Butler County | B9: Alabama | C9: 1268 | D9: 1489 | E9: 1569 | F9: 1749 | G9: 1778 | H9: =ROW() -> 9 | N9: Connecticut
A10: Calhoun County | B10: Alabama | C10: 1339 | D10: 1572 | E10: 1657 | F10: 1848 | G10: 1877 | H10: =ROW() -> 10 | N10: Delaware
A11: Chambers County | B11: Alabama | C11: 1285 | D11: 1509 | E11: 1590 | F11: 1773 | G11: 1801 | H11: =ROW() -> 11 | N11: District of Columbia
A12: Cherokee County | B12: Alabama | C12: 1429 | D12: 1678 | E12: 1768 | F12: 1971 | G12: 2003 | H12: =ROW() -> 12 | N12: Florida
A13: Chilton County | B13: Alabama | C13: 1338 | D13: 1572 | E13: 1656 | F13: 1846 | G13: 1876 | H13: =ROW() -> 13 | N13: Georgia
A14: Choctaw County | B14: Alabama | C14: 1195 | D14: 1404 | E14: 1479 | F14: 1649 | G14: 1676 | H14: =ROW() -> 14 | N14: Hawaii
A15: Clarke County | B15: Alabama | C15: 1403 | D15: 1647 | E15: 1736 | F15: 1936 | G15: 1967 | H15: =ROW() -> 15 | N15: Idaho
A16: Clay County | B16: Alabama | C16: 1217 | D16: 1429 | E16: 1506 | F16: 1679 | G16: 1706 | H16: =ROW() -> 16 | N16: Illinois
A17: Cleburne County | B17: Alabama | C17: 1496 | D17: 1758 | E17: 1852 | F17: 2065 | G17: 2098 | H17: =ROW() -> 17 | N17: Indiana
A18: Coffee County | B18: Alabama | C18: 1454 | D18: 1708 | E18: 1800 | F18: 2007 | G18: 2039 | H18: =ROW() -> 18 | N18: Iowa
A19: Colbert County | B19: Alabama | C19: 1326 | D19: 1557 | E19: 1641 | F19: 1830 | G19: 1859 | H19: =ROW() -> 19 | N19: Kansas
A20: Conecuh County | B20: Alabama | C20: 1221 | D20: 1434 | E20: 1511 | F20: 1685 | G20: 1712 | H20: =ROW() -> 20 | N20: Kentucky
A21: Coosa County | B21: Alabama | C21: 1201 | D21: 1411 | E21: 1487 | F21: 1658 | G21: 1685 | H21: =ROW() -> 21 | N21: Louisiana
A22: Covington County | B22: Alabama | C22: 1289 | D22: 1514 | E22: 1595 | F22: 1778 | G22: 1807 | H22: =ROW() -> 22 | N22: Maine
A23: Crenshaw County | B23: Alabama | C23: 1334 | D23: 1567 | E23: 1651 | F23: 1841 | G23: 1871 | H23: =ROW() -> 23 | N23: Maryland
A24: Cullman County | B24: Alabama | C24: 1338 | D24: 1572 | E24: 1656 | F24: 1846 | G24: 1876 | H24: =ROW() -> 24 | N24: Massachusetts
A25: Dale County | B25: Alabama | C25: 1289 | D25: 1514 | E25: 1595 | F25: 1778 | G25: 1807 | H25: =ROW() -> 25 | N25: Michigan
A26: Dallas County | B26: Alabama | C26: 1326 | D26: 1557 | E26: 1641 | F26: 1830 | G26: 1859 | H26: =ROW() -> 26 | N26: Minnesota
A27: DeKalb County | B27: Alabama | C27: 1301 | D27: 1528 | E27: 1610 | F27: 1795 | G27: 1824 | H27: =ROW() -> 27 | N27: Mississippi
A28: Elmore County | B28: Alabama | C28: 1544 | D28: 1814 | E28: 1911 | F28: 2131 | G28: 2165 | H28: =ROW() -> 28 | N28: Missouri
A29: Escambia County | B29: Alabama | C29: 1238 | D29: 1454 | E29: 1532 | F29: 1708 | G29: 1736 | H29: =ROW() -> 29 | N29: Montana
A30: Etowah County | B30: Alabama | C30: 1358 | D30: 1595 | E30: 1681 | F30: 1874 | G30: 1905 | H30: =ROW() -> 30 | N30: Nebraska
A31: Fayette County | B31: Alabama | C31: 1257 | D31: 1477 | E31: 1556 | F31: 1735 | G31: 1763 | H31: =ROW() -> 31 | N31: Nevada
A32: Franklin County | B32: Alabama | C32: 1271 | D32: 1493 | E32: 1573 | F32: 1754 | G32: 1782 | H32: =ROW() -> 32 | N32: New Hampshire
A33: Geneva County | B33: Alabama | C33: 1313 | D33: 1542 | E33: 1625 | F33: 1812 | G33: 1841 | H33: =ROW() -> 33 | N33: New Jersey
A34: Greene County | B34: Alabama | C34: 1109 | D34: 1302 | E34: 1372 | F34: 1530 | G34: 1554 | H34: =ROW() -> 34 | N34: New Mexico
A35: Hale County | B35: Alabama | C35: 1233 | D35: 1448 | E35: 1526 | F35: 1701 | G35: 1729 | H35: =ROW() -> 35 | N35: New York
A36: Henry County | B36: Alabama | C36: 1296 | D36: 1522 | E36: 1604 | F36: 1788 | G36: 1817 | H36: =ROW() -> 36 | N36: North Carolina
A37: Houston County | B37: Alabama | C37: 1399 | D37: 1644 | E37: 1732 | F37: 1931 | G37: 1962 | H37: =ROW() -> 37 | N37: North Dakota
A38: Jackson County | B38: Alabama | C38: 1311 | D38: 1540 | E38: 1623 | F38: 1810 | G38: 1839 | H38: =ROW() -> 38 | N38: Ohio
A39: Jefferson County | B39: Alabama | C39: 1629 | D39: 1913 | E39: 2016 | F39: 2248 | G39: 2284 | H39: =ROW() -> 39 | N39: Oklahoma
A40: Lamar County | B40: Alabama | C40: 1316 | D40: 1546 | E40: 1629 | F40: 1816 | G40: 1846 | H40: =ROW() -> 40 | N40: Oregon
A41: Lauderdale County | B41: Alabama | C41: 1395 | D41: 1639 | E41: 1727 | F41: 1926 | G41: 1957 | H41: =ROW() -> 41 | N41: Pennsylvania
A42: Lawrence County | B42: Alabama | C42: 1340 | D42: 1573 | E42: 1658 | F42: 1849 | G42: 1879 | H42: =ROW() -> 42 | N42: Puerto Rico
A43: Lee County | B43: Alabama | C43: 1564 | D43: 1837 | E43: 1936 | F43: 2159 | G43: 2193 | H43: =ROW() -> 43 | N43: Rhode Island
A44: Limestone County | B44: Alabama | C44: 1495 | D44: 1756 | E44: 1850 | F44: 2063 | G44: 2096 | H44: =ROW() -> 44 | N44: South Carolina
A45: Lowndes County | B45: Alabama | C45: 1409 | D45: 1655 | E45: 1744 | F45: 1945 | G45: 1976 | H45: =ROW() -> 45 | N45: South Dakota
A46: Macon County | B46: Alabama | C46: 1243 | D46: 1460 | E46: 1538 | F46: 1715 | G46: 1743 | H46: =ROW() -> 46 | N46: Tennessee
A47: Madison County | B47: Alabama | C47: 1586 | D47: 1863 | E47: 1963 | F47: 2189 | G47: 2224 | H47: =ROW() -> 47 | N47: Texas
A48: Marengo County | B48: Alabama | C48: 1416 | D48: 1663 | E48: 1752 | F48: 1953 | G48: 1985 | H48: =ROW() -> 48 | N48: Utah
A49: Marion County | B49: Alabama | C49: 1188 | D49: 1395 | E49: 1470 | F49: 1639 | G49: 1666 | H49: =ROW() -> 49 | N49: Vermont
A50: Marshall County | B50: Alabama | C50: 1378 | D50: 1618 | E50: 1705 | F50: 1901 | G50: 1932 | H50: =ROW() -> 50 | N50: Virginia
A51: Mobile County | B51: Alabama | C51: 1472 | D51: 1729 | E51: 1822 | F51: 2032 | G51: 2064 | H51: =ROW() -> 51 | N51: Washington
A52: Monroe County | B52: Alabama | C52: 1323 | D52: 1554 | E52: 1637 | F52: 1825 | G52: 1855 | H52: =ROW() -> 52 | N52: West Virginia
A53: Montgomery County | B53: Alabama | C53: 1429 | D53: 1679 | E53: 1769 | F53: 1972 | G53: 2004 | H53: =ROW() -> 53 | N53: Wisconsin
A54: Morgan County | B54: Alabama | C54: 1403 | D54: 1647 | E54: 1736 | F54: 1936 | G54: 1967 | H54: =ROW() -> 54 | N54: Wyoming
A55: Perry County | B55: Alabama | C55: 1239 | D55: 1455 | E55: 1533 | F55: 1709 | G55: 1737 | H55: =ROW() -> 55
A56: Pickens County | B56: Alabama | C56: 1302 | D56: 1530 | E56: 1612 | F56: 1797 | G56: 1826 | H56: =ROW() -> 56
A57: Pike County | B57: Alabama | C57: 1476 | D57: 1734 | E57: 1827 | F57: 2037 | G57: 2070 | H57: =ROW() -> 57
A58: Randolph County | B58: Alabama | C58: 1329 | D58: 1561 | E58: 1645 | F58: 1834 | G58: 1864 | H58: =ROW() -> 58
A59: Russell County | B59: Alabama | C59: 1416 | D59: 1663 | E59: 1752 | F59: 1953 | G59: 1985 | H59: =ROW() -> 59
A60: St. Clair County | B60: Alabama | C60: 1523 | D60: 1789 | E60: 1885 | F60: 2102 | G60: 2136 | H60: =ROW() -> 60
A61: Shelby County | B61: Alabama | C61: 1728 | D61: 2030 | E61: 2139 | F61: 2385 | G61: 2423 | H61: =ROW() -> 61
A62: Sumter County | B62: Alabama | C62: 1189 | D62: 1397 | E62: 1472 | F62: 1641 | G62: 1668 | H62: =ROW() -> 62
A63: Talladega County | B63: Alabama | C63: 1348 | D63: 1583 | E63: 1668 | F63: 1860 | G63: 1890 | H63: =ROW() -> 63
A64: Tallapoosa County | B64: Alabama | C64: 1275 | D64: 1498 | E64: 1578 | F64: 1759 | G64: 1788 | H64: =ROW() -> 64
A65: Tuscaloosa County | B65: Alabama | C65: 1569 | D65: 1843 | E65: 1942 | F65: 2165 | G65: 2200 | H65: =ROW() -> 65
A66: Walker County | B66: Alabama | C66: 1369 | D66: 1608 | E66: 1694 | F66: 1889 | G66: 1919 | H66: =ROW() -> 66
A67: Washington County | B67: Alabama | C67: 1471 | D67: 1727 | E67: 1820 | F67: 2029 | G67: 2062 | H67: =ROW() -> 67
A68: Wilcox County | B68: Alabama | C68: 1242 | D68: 1459 | E68: 1537 | F68: 1714 | G68: 1741 | H68: =ROW() -> 68
A69: Winston County | B69: Alabama | C69: 1361 | D69: 1598 | E69: 1684 | F69: 1878 | G69: 1908 | H69: =ROW() -> 69
A70: Aleutians East Borou | B70: Alaska | C70: 1636 | D70: 1922 | E70: 2025 | F70: 2258 | G70: 2294 | H70: =ROW() -> 70
A71: Aleutians West Cens | B71: Alaska | C71: 2490 | D71: 2925 | E71: 3082 | F71: 3436 | G71: 3492 | H71: =ROW() -> 71
A72: Anchorage Municipa | B72: Alaska | C72: 2350 | D72: 2761 | E72: 2909 | F72: 3244 | G72: 3296 | H72: =ROW() -> 72
A73: Bethel Census Area | B73: Alaska | C73: 1908 | D73: 2242 | E73: 2362 | F73: 2634 | G73: 2676 | H73: =ROW() -> 73
A74: Bristol Bay Borough | B74: Alaska | C74: 2112 | D74: 2481 | E74: 2614 | F74: 2915 | G74: 2962 | H74: =ROW() -> 74
A75: Chugach Census Are | B75: Alaska | C75: 2035 | D75: 2391 | E75: 2519 | F75: 2809 | G75: 2854 | H75: =ROW() -> 75
A76: Copper River Census | B76: Alaska | C76: 1805 | D76: 2120 | E76: 2234 | F76: 2491 | G76: 2531 | H76: =ROW() -> 76
A77: Denali Borough | B77: Alaska | C77: 1698 | D77: 1994 | E77: 2101 | F77: 2343 | G77: 2380 | H77: =ROW() -> 77
A78: Dillingham Census A | B78: Alaska | C78: 2220 | D78: 2608 | E78: 2748 | F78: 3064 | G78: 3113 | H78: =ROW() -> 78
A79: Fairbanks North Star | B79: Alaska | C79: 2046 | D79: 2403 | E79: 2532 | F79: 2823 | G79: 2869 | H79: =ROW() -> 79
A80: Haines Borough | B80: Alaska | C80: 1839 | D80: 2160 | E80: 2276 | F80: 2538 | G80: 2579 | H80: =ROW() -> 80
A81: Hoonah-Angoon Cen | B81: Alaska | C81: 1593 | D81: 1871 | E81: 1972 | F81: 2199 | G81: 2234 | H81: =ROW() -> 81
A82: Juneau City and Boro | B82: Alaska | C82: 2336 | D82: 2744 | E82: 2891 | F82: 3223 | G82: 3276 | H82: =ROW() -> 82
A83: Kenai Peninsula Boro | B83: Alaska | C83: 1890 | D83: 2220 | E83: 2339 | F83: 2608 | G83: 2650 | H83: =ROW() -> 83
A84: Ketchikan Gateway B | B84: Alaska | C84: 2171 | D84: 2550 | E84: 2687 | F84: 2996 | G84: 3044 | H84: =ROW() -> 84
A85: Kodiak Island Boroug | B85: Alaska | C85: 2209 | D85: 2595 | E85: 2734 | F85: 3048 | G85: 3098 | H85: =ROW() -> 85
A86: Kusilvak Census Area | B86: Alaska | C86: 913 | D86: 1072 | E86: 1130 | F86: 1260 | G86: 1280 | H86: =ROW() -> 86
A87: Lake and Peninsula B | B87: Alaska | C87: 1045 | D87: 1227 | E87: 1293 | F87: 1442 | G87: 1465 | H87: =ROW() -> 87
A88: Matanuska-Susitna B | B88: Alaska | C88: 2063 | D88: 2423 | E88: 2553 | F88: 2847 | G88: 2893 | H88: =ROW() -> 88
A89: Nome Census Area | B89: Alaska | C89: 1833 | D89: 2152 | E89: 2268 | F89: 2529 | G89: 2570 | H89: =ROW() -> 89
A90: North Slope Borough | B90: Alaska | C90: 1460 | D90: 1715 | E90: 1807 | F90: 2015 | G90: 2047 | H90: =ROW() -> 90
A91: Northwest Arctic Bo | B91: Alaska | C91: 1666 | D91: 1957 | E91: 2062 | F91: 2299 | G91: 2336 | H91: =ROW() -> 91
A92: Petersburg Borough | B92: Alaska | C92: 1859 | D92: 2184 | E92: 2301 | F92: 2566 | G92: 2607 | H92: =ROW() -> 92
A93: Prince of Wales-Hyd | B93: Alaska | C93: 1775 | D93: 2085 | E93: 2197 | F93: 2450 | G93: 2489 | H93: =ROW() -> 93
A94: Sitka City and Borou | B94: Alaska | C94: 2421 | D94: 2843 | E94: 2996 | F94: 3341 | G94: 3394 | H94: =ROW() -> 94
A95: Skagway Municipalit | B95: Alaska | C95: 2407 | D95: 2827 | E95: 2979 | F95: 3322 | G95: 3375 | H95: =ROW() -> 95
A96: Southeast Fairbanks | B96: Alaska | C96: 1725 | D96: 2026 | E96: 2135 | F96: 2381 | G96: 2419 | H96: =ROW() -> 96
A97: Wrangell City and Bo | B97: Alaska | C97: 1702 | D97: 2000 | E97: 2107 | F97: 2349 | G97: 2387 | H97: =ROW() -> 97
A98: Yakutat City and Bor | B98: Alaska | C98: 1499 | D98: 1760 | E98: 1855 | F98: 2068 | G98: 2102 | H98: =ROW() -> 98
A99: Yukon-Koyukuk Cens | B99: Alaska | C99: 1361 | D99: 1598 | E99: 1684 | F99: 1878 | G99: 1908 | H99: =ROW() -> 99
A100: Apache County | B100: Arizona | C100: 1315 | D100: 1544 | E100: 1627 | F100: 1814 | G100: 1843 | H100: =ROW() -> 100
A101: Cochise County | B101: Arizona | C101: 1436 | D101: 1686 | E101: 1777 | F101: 1981 | G101: 2013 | H101: =ROW() -> 101
A102: Coconino County | B102: Arizona | C102: 1923 | D102: 2259 | E102: 2380 | F102: 2654 | G102: 2697 | H102: =ROW() -> 102
A103: Gila County | B103: Arizona | C103: 1547 | D103: 1816 | E103: 1914 | F103: 2134 | G103: 2169 | H103: =ROW() -> 103
A104: Graham County | B104: Arizona | C104: 1481 | D104: 1740 | E104: 1833 | F104: 2044 | G104: 2077 | H104: =ROW() -> 104
A105: Greenlee County | B105: Arizona | C105: 1125 | D105: 1321 | E105: 1392 | F105: 1552 | G105: 1577 | H105: =ROW() -> 105
A106: La Paz County | B106: Arizona | C106: 1232 | D106: 1447 | E106: 1525 | F106: 1700 | G106: 1728 | H106: =ROW() -> 106
A107: Maricopa County | B107: Arizona | C107: 1917 | D107: 2251 | E107: 2372 | F107: 2645 | G107: 2687 | H107: =ROW() -> 107
A108: Mohave County | B108: Arizona | C108: 1412 | D108: 1658 | E108: 1747 | F108: 1948 | G108: 1979 | H108: =ROW() -> 108
A109: Navajo County | B109: Arizona | C109: 1392 | D109: 1635 | E109: 1723 | F109: 1921 | G109: 1952 | H109: =ROW() -> 109
A110: Pima County | B110: Arizona | C110: 1631 | D110: 1916 | E110: 2019 | F110: 2251 | G110: 2288 | H110: =ROW() -> 110
A111: Pinal County | B111: Arizona | C111: 1681 | D111: 1974 | E111: 2080 | F111: 2319 | G111: 2357 | H111: =ROW() -> 111
A112: Santa Cruz County | B112: Arizona | C112: 1322 | D112: 1553 | E112: 1636 | F112: 1824 | G112: 1854 | H112: =ROW() -> 112
A113: Yavapai County | B113: Arizona | C113: 1652 | D113: 1941 | E113: 2045 | F113: 2280 | G113: 2317 | H113: =ROW() -> 113
A114: Yuma County | B114: Arizona | C114: 1426 | D114: 1675 | E114: 1765 | F114: 1968 | G114: 2000 | H114: =ROW() -> 114
A115: Arkansas County | B115: Arkansas | C115: 1351 | D115: 1587 | E115: 1672 | F115: 1864 | G115: 1894 | H115: =ROW() -> 115
A116: Ashley County | B116: Arkansas | C116: 1233 | D116: 1448 | E116: 1526 | F116: 1701 | G116: 1729 | H116: =ROW() -> 116
A117: Baxter County | B117: Arkansas | C117: 1239 | D117: 1456 | E117: 1534 | F117: 1710 | G117: 1738 | H117: =ROW() -> 117
A118: Benton County | B118: Arkansas | C118: 1635 | D118: 1920 | E118: 2023 | F118: 2256 | G118: 2292 | H118: =ROW() -> 118
A119: Boone County | B119: Arkansas | C119: 1296 | D119: 1522 | E119: 1604 | F119: 1788 | G119: 1817 | H119: =ROW() -> 119
A120: Bradley County | B120: Arkansas | C120: 1230 | D120: 1444 | E120: 1522 | F120: 1697 | G120: 1724 | H120: =ROW() -> 120
A121: Calhoun County | B121: Arkansas | C121: 1273 | D121: 1495 | E121: 1575 | F121: 1756 | G121: 1784 | H121: =ROW() -> 121
A122: Carroll County | B122: Arkansas | C122: 1368 | D122: 1607 | E122: 1693 | F122: 1888 | G122: 1918 | H122: =ROW() -> 122
A123: Chicot County | B123: Arkansas | C123: 1142 | D123: 1341 | E123: 1413 | F123: 1575 | G123: 1601 | H123: =ROW() -> 123
A124: Clark County | B124: Arkansas | C124: 1371 | D124: 1610 | E124: 1697 | F124: 1892 | G124: 1923 | H124: =ROW() -> 124
A125: Clay County | B125: Arkansas | C125: 1117 | D125: 1312 | E125: 1382 | F125: 1541 | G125: 1566 | H125: =ROW() -> 125
A126: Cleburne County | B126: Arkansas | C126: 1221 | D126: 1434 | E126: 1511 | F126: 1685 | G126: 1712 | H126: =ROW() -> 126
A127: Cleveland County | B127: Arkansas | C127: 1291 | D127: 1517 | E127: 1598 | F127: 1782 | G127: 1811 | H127: =ROW() -> 127
A128: Columbia County | B128: Arkansas | C128: 1290 | D128: 1515 | E128: 1596 | F128: 1780 | G128: 1808 | H128: =ROW() -> 128
A129: Conway County | B129: Arkansas | C129: 1271 | D129: 1493 | E129: 1573 | F129: 1754 | G129: 1782 | H129: =ROW() -> 129
A130: Craighead County | B130: Arkansas | C130: 1405 | D130: 1650 | E130: 1739 | F130: 1939 | G130: 1970 | H130: =ROW() -> 130
A131: Crawford County | B131: Arkansas | C131: 1281 | D131: 1505 | E131: 1586 | F131: 1768 | G131: 1797 | H131: =ROW() -> 131
A132: Crittenden County | B132: Arkansas | C132: 1366 | D132: 1605 | E132: 1691 | F132: 1885 | G132: 1916 | H132: =ROW() -> 132
A133: Cross County | B133: Arkansas | C133: 1305 | D133: 1533 | E133: 1615 | F133: 1801 | G133: 1830 | H133: =ROW() -> 133
A134: Dallas County | B134: Arkansas | C134: 1225 | D134: 1439 | E134: 1516 | F134: 1690 | G134: 1718 | H134: =ROW() -> 134
A135: Desha County | B135: Arkansas | C135: 1210 | D135: 1421 | E135: 1497 | F135: 1669 | G135: 1696 | H135: =ROW() -> 135
A136: Drew County | B136: Arkansas | C136: 1216 | D136: 1428 | E136: 1505 | F136: 1678 | G136: 1705 | H136: =ROW() -> 136
A137: Faulkner County | B137: Arkansas | C137: 1470 | D137: 1726 | E137: 1819 | F137: 2028 | G137: 2061 | H137: =ROW() -> 137
A138: Franklin County | B138: Arkansas | C138: 1224 | D138: 1438 | E138: 1515 | F138: 1689 | G138: 1716 | H138: =ROW() -> 138
A139: Fulton County | B139: Arkansas | C139: 1183 | D139: 1389 | E139: 1464 | F139: 1632 | G139: 1659 | H139: =ROW() -> 139
A140: Garland County | B140: Arkansas | C140: 1339 | D140: 1572 | E140: 1657 | F140: 1848 | G140: 1877 | H140: =ROW() -> 140
A141: Grant County | B141: Arkansas | C141: 1455 | D141: 1709 | E141: 1801 | F141: 2008 | G141: 2041 | H141: =ROW() -> 141
A142: Greene County | B142: Arkansas | C142: 1361 | D142: 1598 | E142: 1684 | F142: 1878 | G142: 1908 | H142: =ROW() -> 142
A143: Hempstead County | B143: Arkansas | C143: 1244 | D143: 1461 | E143: 1540 | F143: 1717 | G143: 1745 | H143: =ROW() -> 143
A144: Hot Spring County | B144: Arkansas | C144: 1206 | D144: 1417 | E144: 1493 | F144: 1665 | G144: 1692 | H144: =ROW() -> 144
A145: Howard County | B145: Arkansas | C145: 1239 | D145: 1455 | E145: 1533 | F145: 1709 | G145: 1737 | H145: =ROW() -> 145
A146: Independence Count | B146: Arkansas | C146: 1248 | D146: 1466 | E146: 1545 | F146: 1723 | G146: 1750 | H146: =ROW() -> 146
A147: Izard County | B147: Arkansas | C147: 1159 | D147: 1362 | E147: 1435 | F147: 1600 | G147: 1626 | H147: =ROW() -> 147
A148: Jackson County | B148: Arkansas | C148: 1122 | D148: 1318 | E148: 1389 | F148: 1549 | G148: 1574 | H148: =ROW() -> 148
A149: Jefferson County | B149: Arkansas | C149: 1285 | D149: 1509 | E149: 1590 | F149: 1773 | G149: 1801 | H149: =ROW() -> 149
A150: Johnson County | B150: Arkansas | C150: 1214 | D150: 1426 | E150: 1503 | F150: 1676 | G150: 1703 | H150: =ROW() -> 150
A151: Lafayette County | B151: Arkansas | C151: 1091 | D151: 1281 | E151: 1350 | F151: 1505 | G151: 1530 | H151: =ROW() -> 151
A152: Lawrence County | B152: Arkansas | C152: 1077 | D152: 1265 | E152: 1333 | F152: 1486 | G152: 1510 | H152: =ROW() -> 152
A153: Lee County | B153: Arkansas | C153: 1200 | D153: 1409 | E153: 1485 | F153: 1656 | G153: 1683 | H153: =ROW() -> 153
A154: Lincoln County | B154: Arkansas | C154: 1142 | D154: 1341 | E154: 1413 | F154: 1575 | G154: 1601 | H154: =ROW() -> 154
A155: Little River County | B155: Arkansas | C155: 1165 | D155: 1368 | E155: 1442 | F155: 1608 | G155: 1634 | H155: =ROW() -> 155
A156: Logan County | B156: Arkansas | C156: 1153 | D156: 1354 | E156: 1427 | F156: 1591 | G156: 1617 | H156: =ROW() -> 156
A157: Lonoke County | B157: Arkansas | C157: 1459 | D157: 1714 | E157: 1806 | F157: 2014 | G157: 2046 | H157: =ROW() -> 157
A158: Madison County | B158: Arkansas | C158: 1225 | D158: 1439 | E158: 1516 | F158: 1690 | G158: 1718 | H158: =ROW() -> 158
A159: Marion County | B159: Arkansas | C159: 1173 | D159: 1378 | E159: 1452 | F159: 1619 | G159: 1645 | H159: =ROW() -> 159
A160: Miller County | B160: Arkansas | C160: 1357 | D160: 1593 | E160: 1679 | F160: 1872 | G160: 1902 | H160: =ROW() -> 160
A161: Mississippi County | B161: Arkansas | C161: 1202 | D161: 1412 | E161: 1488 | F161: 1659 | G161: 1686 | H161: =ROW() -> 161
A162: Monroe County | B162: Arkansas | C162: 1184 | D162: 1390 | E162: 1465 | F162: 1633 | G162: 1660 | H162: =ROW() -> 162
A163: Montgomery County | B163: Arkansas | C163: 1315 | D163: 1545 | E163: 1628 | F163: 1815 | G163: 1845 | H163: =ROW() -> 163
A164: Nevada County | B164: Arkansas | C164: 1177 | D164: 1383 | E164: 1457 | F164: 1625 | G164: 1651 | H164: =ROW() -> 164
A165: Newton County | B165: Arkansas | C165: 1269 | D165: 1490 | E165: 1570 | F165: 1751 | G165: 1779 | H165: =ROW() -> 165
A166: Ouachita County | B166: Arkansas | C166: 1172 | D166: 1377 | E166: 1451 | F166: 1618 | G166: 1644 | H166: =ROW() -> 166
A167: Perry County | B167: Arkansas | C167: 1238 | D167: 1454 | E167: 1532 | F167: 1708 | G167: 1736 | H167: =ROW() -> 167
A168: Phillips County | B168: Arkansas | C168: 1228 | D168: 1442 | E168: 1520 | F168: 1695 | G168: 1722 | H168: =ROW() -> 168
A169: Pike County | B169: Arkansas | C169: 1204 | D169: 1414 | E169: 1490 | F169: 1661 | G169: 1688 | H169: =ROW() -> 169
A170: Poinsett County | B170: Arkansas | C170: 1177 | D170: 1383 | E170: 1457 | F170: 1625 | G170: 1651 | H170: =ROW() -> 170
A171: Polk County | B171: Arkansas | C171: 1233 | D171: 1448 | E171: 1526 | F171: 1701 | G171: 1729 | H171: =ROW() -> 171
A172: Pope County | B172: Arkansas | C172: 1252 | D172: 1471 | E172: 1550 | F172: 1728 | G172: 1756 | H172: =ROW() -> 172
A173: Prairie County | B173: Arkansas | C173: 1214 | D173: 1426 | E173: 1503 | F173: 1676 | G173: 1703 | H173: =ROW() -> 173
A174: Pulaski County | B174: Arkansas | C174: 1544 | D174: 1814 | E174: 1911 | F174: 2131 | G174: 2165 | H174: =ROW() -> 174
A175: Randolph County | B175: Arkansas | C175: 1133 | D175: 1330 | E175: 1402 | F175: 1563 | G175: 1588 | H175: =ROW() -> 175
A176: St. Francis County | B176: Arkansas | C176: 1130 | D176: 1327 | E176: 1398 | F176: 1559 | G176: 1584 | H176: =ROW() -> 176
A177: Saline County | B177: Arkansas | C177: 1497 | D177: 1758 | E177: 1853 | F177: 2066 | G177: 2099 | H177: =ROW() -> 177
A178: Scott County | B178: Arkansas | C178: 1182 | D178: 1388 | E178: 1463 | F178: 1631 | G178: 1658 | H178: =ROW() -> 178
A179: Searcy County | B179: Arkansas | C179: 1201 | D179: 1411 | E179: 1487 | F179: 1658 | G179: 1685 | H179: =ROW() -> 179
A180: Sebastian County | B180: Arkansas | C180: 1355 | D180: 1591 | E180: 1677 | F180: 1870 | G180: 1900 | H180: =ROW() -> 180
A181: Sevier County | B181: Arkansas | C181: 1214 | D181: 1426 | E181: 1503 | F181: 1676 | G181: 1703 | H181: =ROW() -> 181
A182: Sharp County | B182: Arkansas | C182: 1103 | D182: 1295 | E182: 1365 | F182: 1522 | G182: 1547 | H182: =ROW() -> 182
A183: Stone County | B183: Arkansas | C183: 1284 | D183: 1508 | E183: 1589 | F183: 1772 | G183: 1800 | H183: =ROW() -> 183
A184: Union County | B184: Arkansas | C184: 1295 | D184: 1521 | E184: 1603 | F184: 1787 | G184: 1816 | H184: =ROW() -> 184
A185: Van Buren County | B185: Arkansas | C185: 1298 | D185: 1524 | E185: 1606 | F185: 1791 | G185: 1820 | H185: =ROW() -> 185
A186: Washington County | B186: Arkansas | C186: 1594 | D186: 1872 | E186: 1973 | F186: 2200 | G186: 2235 | H186: =ROW() -> 186
A187: White County | B187: Arkansas | C187: 1321 | D187: 1552 | E187: 1635 | F187: 1823 | G187: 1852 | H187: =ROW() -> 187
A188: Woodruff County | B188: Arkansas | C188: 1223 | D188: 1436 | E188: 1513 | F188: 1687 | G188: 1714 | H188: =ROW() -> 188
A189: Yell County | B189: Arkansas | C189: 1321 | D189: 1552 | E189: 1635 | F189: 1823 | G189: 1852 | H189: =ROW() -> 189
A190: Alameda County | B190: California | C190: 3242 | D190: 3807 | E190: 4012 | F190: 4473 | G190: 4546 | H190: =ROW() -> 190
A191: Alpine County | B191: California | C191: 2409 | D191: 2829 | E191: 2981 | F191: 3324 | G191: 3377 | H191: =ROW() -> 191
A192: Amador County | B192: California | C192: 2056 | D192: 2415 | E192: 2545 | F192: 2838 | G192: 2883 | H192: =ROW() -> 192
A193: Butte County | B193: California | C193: 1975 | D193: 2319 | E193: 2444 | F193: 2725 | G193: 2769 | H193: =ROW() -> 193
A194: Calaveras County | B194: California | C194: 2171 | D194: 2550 | E194: 2687 | F194: 2996 | G194: 3044 | H194: =ROW() -> 194
A195: Colusa County | B195: California | C195: 1890 | D195: 2220 | E195: 2339 | F195: 2608 | G195: 2650 | H195: =ROW() -> 195
A196: Contra Costa County | B196: California | C196: 2988 | D196: 3509 | E196: 3698 | F196: 4123 | G196: 4190 | H196: =ROW() -> 196
A197: Del Norte County | B197: California | C197: 1602 | D197: 1882 | E197: 1983 | F197: 2211 | G197: 2247 | H197: =ROW() -> 197
A198: El Dorado County | B198: California | C198: 2602 | D198: 3056 | E198: 3220 | F198: 3590 | G198: 3648 | H198: =ROW() -> 198
A199: Fresno County | B199: California | C199: 1922 | D199: 2258 | E199: 2379 | F199: 2653 | G199: 2695 | H199: =ROW() -> 199
A200: Glenn County | B200: California | C200: 1823 | D200: 2141 | E200: 2256 | F200: 2515 | G200: 2556 | H200: =ROW() -> 200
... 3024 more rows

Sheet Transportation
F1: County & State | G1: Region | H1: 1 veh | I1: 2+ veh | J1: # Vehicles Claimed: | K1: Max Allowed
F2: =IF(OR(Calculator!C5="",Calculator!C4=""),"",Calculator!D5&", "&Calculator!C4) -> Hamilton County, Tennessee | G2: =IF(F2="","",_xlfn.IFNA(_xlfn.XLOOKUP(F2,F3:F270,G3:G270),_xlfn.XLOOKUP(Calculator!C4,F3:F270,G3:G270))) -> South Region | H2: =_xlfn.IFNA(_xlfn.IFNA(_xlfn.XLOOKUP(G2,G3:G270,H3:H270),_xlfn.XLOOKUP(Calculator!E4,G3:G270,H3:H270)),0) -> 242 | I2: =IFERROR(_xlfn.IFNA(_xlfn.XLOOKUP(H2,H3:H270,I3:I270),_xlfn.XLOOKUP(Calculator!#REF!,H3:H270,I3:I270)),0) -> 484
A3: Public Transportation | F3: Adams County, Colorado | G3: Denver | H3: =_xlfn.XLOOKUP(G3,A:A,B:B) -> 279 | I3: =_xlfn.XLOOKUP(G3,A:A,C:C) -> 558 | J3: =Calculator!C6 -> 2 | K3: =IF(Calculator!C6>1,Transportation!I2,Transportation!H2) -> 484
A4: Location | B4: Allowed Amount | F4: Alabama | G4: South Region | H4: =_xlfn.XLOOKUP(G4,A:A,B:B) -> 242 | I4: =_xlfn.XLOOKUP(G4,A:A,C:C) -> 484
A5: National | B5: 218 | F5: Alameda County, California | G5: San Francisco | H5: =_xlfn.XLOOKUP(G5,A:A,B:B) -> 301 | I5: =_xlfn.XLOOKUP(G5,A:A,C:C) -> 602
A6: Ownership Costs | F6: Alaska | G6: West Region | H6: =_xlfn.XLOOKUP(G6,A:A,B:B) -> 264 | I6: =_xlfn.XLOOKUP(G6,A:A,C:C) -> 528
A7: Location | B7: One Car | C7: Two Cars | F7: Alexandria city County, Virginia | G7: Washington, D.C. | H7: =_xlfn.XLOOKUP(G7,A:A,B:B) -> 294 | I7: =_xlfn.XLOOKUP(G7,A:A,C:C) -> 588
A8: National | B8: 629 | C8: 1258 | F8: Anchorage County, Alaska | G8: Anchorage | H8: =_xlfn.XLOOKUP(G8,A:A,B:B) -> 208 | I8: =_xlfn.XLOOKUP(G8,A:A,C:C) -> 416
A9: Northeast Region Operating Costs | F9: Anne Arundel County, Maryland | G9: Baltimore | H9: =_xlfn.XLOOKUP(G9,A:A,B:B) -> 277 | I9: =_xlfn.XLOOKUP(G9,A:A,C:C) -> 554
A10: Location | B10: One Car | C10: Two Cars | F10: Anoka County, Minnosota | G10: Minneapolis-St. Paul | H10: =_xlfn.XLOOKUP(G10,A:A,B:B) -> 214 | I10: =_xlfn.XLOOKUP(G10,A:A,C:C) -> 428
A11: Northeast Region | B11: 298 | C11: 596 | F11: Arapahoe County, Colorado | G11: Denver | H11: =_xlfn.XLOOKUP(G11,A:A,B:B) -> 279 | I11: =_xlfn.XLOOKUP(G11,A:A,C:C) -> 558
A12: Boston | B12: 294 | C12: 588 | F12: Arizona | G12: West Region | H12: =_xlfn.XLOOKUP(G12,A:A,B:B) -> 264 | I12: =_xlfn.XLOOKUP(G12,A:A,C:C) -> 528
A13: New York | B13: 379 | C13: 758 | F13: Arkansas | G13: South Region | H13: =_xlfn.XLOOKUP(G13,A:A,B:B) -> 242 | I13: =_xlfn.XLOOKUP(G13,A:A,C:C) -> 484
A14: Philadelphia | B14: 318 | C14: 636 | F14: Arlington County, Virginia | G14: Washington, D.C. | H14: =_xlfn.XLOOKUP(G14,A:A,B:B) -> 294 | I14: =_xlfn.XLOOKUP(G14,A:A,C:C) -> 588
A15: Midwest Region Operating Costs | F15: Ashtabula County, Ohio | G15: Cleveland | H15: =_xlfn.XLOOKUP(G15,A:A,B:B) -> 225 | I15: =_xlfn.XLOOKUP(G15,A:A,C:C) -> 450
A16: Location | B16: One Car | C16: Two Cars | F16: Austin County, Texas | G16: Houston | H16: =_xlfn.XLOOKUP(G16,A:A,B:B) -> 312 | I16: =_xlfn.XLOOKUP(G16,A:A,C:C) -> 624
A17: Midwest Region | B17: 225 | C17: 450 | F17: Baltimore city County, Maryland | G17: Baltimore | H17: =_xlfn.XLOOKUP(G17,A:A,B:B) -> 277 | I17: =_xlfn.XLOOKUP(G17,A:A,C:C) -> 554
A18: Chicago | B18: 265 | C18: 530 | F18: Baltimore county County, Maryland | G18: Baltimore | H18: =_xlfn.XLOOKUP(G18,A:A,B:B) -> 277 | I18: =_xlfn.XLOOKUP(G18,A:A,C:C) -> 554
A19: Cleveland | B19: 225 | C19: 450 | F19: Barrow County, Georgia | G19: Atlanta | H19: =_xlfn.XLOOKUP(G19,A:A,B:B) -> 300 | I19: =_xlfn.XLOOKUP(G19,A:A,C:C) -> 600
A20: Detroit | B20: 315 | C20: 630 | F20: Bartow County, Georgia | G20: Atlanta | H20: =_xlfn.XLOOKUP(G20,A:A,B:B) -> 300 | I20: =_xlfn.XLOOKUP(G20,A:A,C:C) -> 600
A21: Minneapolis-St. Paul | B21: 214 | C21: 428 | F21: Bergen County, New Jersey | G21: New York | H21: =_xlfn.XLOOKUP(G21,A:A,B:B) -> 379 | I21: =_xlfn.XLOOKUP(G21,A:A,C:C) -> 758
A22: St. Louis | B22: 244 | C22: 488 | F22: Bond County, Illinois | G22: St. Louis | H22: =_xlfn.XLOOKUP(G22,A:A,B:B) -> 244 | I22: =_xlfn.XLOOKUP(G22,A:A,C:C) -> 488
A23: South Region Operating Costs | F23: Brazoria County, Texas | G23: Houston | H23: =_xlfn.XLOOKUP(G23,A:A,B:B) -> 312 | I23: =_xlfn.XLOOKUP(G23,A:A,C:C) -> 624
A24: Location | B24: One Car | C24: Two Cars | F24: Bronx County, New York | G24: New York | H24: =_xlfn.XLOOKUP(G24,A:A,B:B) -> 379 | I24: =_xlfn.XLOOKUP(G24,A:A,C:C) -> 758
A25: South Region | B25: 242 | C25: 484 | F25: Broomfield County, Colorado | G25: Denver | H25: =_xlfn.XLOOKUP(G25,A:A,B:B) -> 279 | I25: =_xlfn.XLOOKUP(G25,A:A,C:C) -> 558
A26: Atlanta | B26: 300 | C26: 600 | F26: Broward County, Florida | G26: Miami | H26: =_xlfn.XLOOKUP(G26,A:A,B:B) -> 364 | I26: =_xlfn.XLOOKUP(G26,A:A,C:C) -> 728
A27: Baltimore | B27: 277 | C27: 554 | F27: Bucks County, Pennsylvania | G27: Philadelphia | H27: =_xlfn.XLOOKUP(G27,A:A,B:B) -> 318 | I27: =_xlfn.XLOOKUP(G27,A:A,C:C) -> 636
A28: Dallas-Ft. Worth | B28: 288 | C28: 576 | F28: Burlington County, New Jersey | G28: Philadelphia | H28: =_xlfn.XLOOKUP(G28,A:A,B:B) -> 318 | I28: =_xlfn.XLOOKUP(G28,A:A,C:C) -> 636
A29: Houston | B29: 312 | C29: 624 | F29: Butts County, Georgia | G29: Atlanta | H29: =_xlfn.XLOOKUP(G29,A:A,B:B) -> 300 | I29: =_xlfn.XLOOKUP(G29,A:A,C:C) -> 600
A30: Miami | B30: 364 | C30: 728 | F30: Calhoun County, Illinois | G30: St. Louis | H30: =_xlfn.XLOOKUP(G30,A:A,B:B) -> 244 | I30: =_xlfn.XLOOKUP(G30,A:A,C:C) -> 488
A31: Tampa | B31: 297 | C31: 594 | F31: California | G31: West Region | H31: =_xlfn.XLOOKUP(G31,A:A,B:B) -> 264 | I31: =_xlfn.XLOOKUP(G31,A:A,C:C) -> 528
A32: Washington, D.C. | B32: 294 | C32: 588 | F32: Calvert County, Maryland | G32: Washington, D.C. | H32: =_xlfn.XLOOKUP(G32,A:A,B:B) -> 294 | I32: =_xlfn.XLOOKUP(G32,A:A,C:C) -> 588
A33: West Region Operating Costs | F33: Camden County, New Jersey | G33: Philadelphia | H33: =_xlfn.XLOOKUP(G33,A:A,B:B) -> 318 | I33: =_xlfn.XLOOKUP(G33,A:A,C:C) -> 636
A34: Location | B34: One Car | C34: Two Cars | F34: Carroll County, Georgia | G34: Atlanta | H34: =_xlfn.XLOOKUP(G34,A:A,B:B) -> 300 | I34: =_xlfn.XLOOKUP(G34,A:A,C:C) -> 600
A35: West Region | B35: 264 | C35: 528 | F35: Carroll County, Maryland | G35: Baltimore | H35: =_xlfn.XLOOKUP(G35,A:A,B:B) -> 277 | I35: =_xlfn.XLOOKUP(G35,A:A,C:C) -> 554
A36: Anchorage | B36: 208 | C36: 416 | F36: Carver County, Minnosota | G36: Minneapolis-St. Paul | H36: =_xlfn.XLOOKUP(G36,A:A,B:B) -> 214 | I36: =_xlfn.XLOOKUP(G36,A:A,C:C) -> 428
A37: Denver | B37: 279 | C37: 558 | F37: Cecil County, Maryland | G37: Philadelphia | H37: =_xlfn.XLOOKUP(G37,A:A,B:B) -> 318 | I37: =_xlfn.XLOOKUP(G37,A:A,C:C) -> 636
A38: Honolulu | B38: 243 | C38: 486 | F38: Chambers County, Texas | G38: Houston | H38: =_xlfn.XLOOKUP(G38,A:A,B:B) -> 312 | I38: =_xlfn.XLOOKUP(G38,A:A,C:C) -> 624
A39: Los Angeles | B39: 339 | C39: 678 | F39: Charles County, Maryland | G39: Washington, D.C. | H39: =_xlfn.XLOOKUP(G39,A:A,B:B) -> 294 | I39: =_xlfn.XLOOKUP(G39,A:A,C:C) -> 588
A40: Phoenix | B40: 271 | C40: 542 | F40: Cherokee County, Georgia | G40: Atlanta | H40: =_xlfn.XLOOKUP(G40,A:A,B:B) -> 300 | I40: =_xlfn.XLOOKUP(G40,A:A,C:C) -> 600
A41: San Diego | B41: 322 | C41: 644 | F41: Chester County, Pennsylvania | G41: Philadelphia | H41: =_xlfn.XLOOKUP(G41,A:A,B:B) -> 318 | I41: =_xlfn.XLOOKUP(G41,A:A,C:C) -> 636
A42: San Francisco | B42: 301 | C42: 602 | F42: Chisago County, Minnosota | G42: Minneapolis-St. Paul | H42: =_xlfn.XLOOKUP(G42,A:A,B:B) -> 214 | I42: =_xlfn.XLOOKUP(G42,A:A,C:C) -> 428
A43: Seattle | B43: 281 | C43: 562 | F43: Clarke County, Virginia | G43: Washington, D.C. | H43: =_xlfn.XLOOKUP(G43,A:A,B:B) -> 294 | I43: =_xlfn.XLOOKUP(G43,A:A,C:C) -> 588
F44: Clayton County, Georgia | G44: Atlanta | H44: =_xlfn.XLOOKUP(G44,A:A,B:B) -> 300 | I44: =_xlfn.XLOOKUP(G44,A:A,C:C) -> 600
F45: Clear Creek County, Colorado | G45: Denver | H45: =_xlfn.XLOOKUP(G45,A:A,B:B) -> 279 | I45: =_xlfn.XLOOKUP(G45,A:A,C:C) -> 558
F46: Clinton County, Illinois | G46: St. Louis | H46: =_xlfn.XLOOKUP(G46,A:A,B:B) -> 244 | I46: =_xlfn.XLOOKUP(G46,A:A,C:C) -> 488
F47: Cobb County, Georgia | G47: Atlanta | H47: =_xlfn.XLOOKUP(G47,A:A,B:B) -> 300 | I47: =_xlfn.XLOOKUP(G47,A:A,C:C) -> 600
F48: Collin County, Texas | G48: Dallas-Ft. Worth | H48: =_xlfn.XLOOKUP(G48,A:A,B:B) -> 288 | I48: =_xlfn.XLOOKUP(G48,A:A,C:C) -> 576
F49: Colorado | G49: West Region | H49: =_xlfn.XLOOKUP(G49,A:A,B:B) -> 264 | I49: =_xlfn.XLOOKUP(G49,A:A,C:C) -> 528
F50: Connecticut | G50: Northeast Region | H50: =_xlfn.XLOOKUP(G50,A:A,B:B) -> 298 | I50: =_xlfn.XLOOKUP(G50,A:A,C:C) -> 596
F51: Contra Costa County, California | G51: San Francisco | H51: =_xlfn.XLOOKUP(G51,A:A,B:B) -> 301 | I51: =_xlfn.XLOOKUP(G51,A:A,C:C) -> 602
F52: Cook County, Illinois | G52: Chicago | H52: =_xlfn.XLOOKUP(G52,A:A,B:B) -> 265 | I52: =_xlfn.XLOOKUP(G52,A:A,C:C) -> 530
F53: Coweta County, Georgia | G53: Atlanta | H53: =_xlfn.XLOOKUP(G53,A:A,B:B) -> 300 | I53: =_xlfn.XLOOKUP(G53,A:A,C:C) -> 600
F54: Culpeper County, Virginia | G54: Washington, D.C. | H54: =_xlfn.XLOOKUP(G54,A:A,B:B) -> 294 | I54: =_xlfn.XLOOKUP(G54,A:A,C:C) -> 588
F55: Cuyahoga County, Ohio | G55: Cleveland | H55: =_xlfn.XLOOKUP(G55,A:A,B:B) -> 225 | I55: =_xlfn.XLOOKUP(G55,A:A,C:C) -> 450
F56: Dakota County, Minnosota | G56: Minneapolis-St. Paul | H56: =_xlfn.XLOOKUP(G56,A:A,B:B) -> 214 | I56: =_xlfn.XLOOKUP(G56,A:A,C:C) -> 428
F57: Dallas County, Texas | G57: Dallas-Ft. Worth | H57: =_xlfn.XLOOKUP(G57,A:A,B:B) -> 288 | I57: =_xlfn.XLOOKUP(G57,A:A,C:C) -> 576
F58: Dawson County, Georgia | G58: Atlanta | H58: =_xlfn.XLOOKUP(G58,A:A,B:B) -> 300 | I58: =_xlfn.XLOOKUP(G58,A:A,C:C) -> 600
F59: DeKalb County, Georgia | G59: Atlanta | H59: =_xlfn.XLOOKUP(G59,A:A,B:B) -> 300 | I59: =_xlfn.XLOOKUP(G59,A:A,C:C) -> 600
F60: DeKalb County, Illinois | G60: Chicago | H60: =_xlfn.XLOOKUP(G60,A:A,B:B) -> 265 | I60: =_xlfn.XLOOKUP(G60,A:A,C:C) -> 530
F61: Delaware | G61: South Region | H61: =_xlfn.XLOOKUP(G61,A:A,B:B) -> 242 | I61: =_xlfn.XLOOKUP(G61,A:A,C:C) -> 484
F62: Delaware County, Pennsylvania | G62: Philadelphia | H62: =_xlfn.XLOOKUP(G62,A:A,B:B) -> 318 | I62: =_xlfn.XLOOKUP(G62,A:A,C:C) -> 636
F63: Denton County, Texas | G63: Dallas-Ft. Worth | H63: =_xlfn.XLOOKUP(G63,A:A,B:B) -> 288 | I63: =_xlfn.XLOOKUP(G63,A:A,C:C) -> 576
F64: Denver County, Colorado | G64: Denver | H64: =_xlfn.XLOOKUP(G64,A:A,B:B) -> 279 | I64: =_xlfn.XLOOKUP(G64,A:A,C:C) -> 558
F65: District of Columbia | G65: South Region | H65: =_xlfn.XLOOKUP(G65,A:A,B:B) -> 242 | I65: =_xlfn.XLOOKUP(G65,A:A,C:C) -> 484
F66: District of Columbia County, DC | G66: Washington, D.C. | H66: =_xlfn.XLOOKUP(G66,A:A,B:B) -> 294 | I66: =_xlfn.XLOOKUP(G66,A:A,C:C) -> 588
F67: Douglas County, Colorado | G67: Denver | H67: =_xlfn.XLOOKUP(G67,A:A,B:B) -> 279 | I67: =_xlfn.XLOOKUP(G67,A:A,C:C) -> 558
F68: Douglas County, Georgia | G68: Atlanta | H68: =_xlfn.XLOOKUP(G68,A:A,B:B) -> 300 | I68: =_xlfn.XLOOKUP(G68,A:A,C:C) -> 600
F69: DuPage County, Illinois | G69: Chicago | H69: =_xlfn.XLOOKUP(G69,A:A,B:B) -> 265 | I69: =_xlfn.XLOOKUP(G69,A:A,C:C) -> 530
F70: Dutchess County, New York | G70: New York | H70: =_xlfn.XLOOKUP(G70,A:A,B:B) -> 379 | I70: =_xlfn.XLOOKUP(G70,A:A,C:C) -> 758
F71: Elbert County, Colorado | G71: Denver | H71: =_xlfn.XLOOKUP(G71,A:A,B:B) -> 279 | I71: =_xlfn.XLOOKUP(G71,A:A,C:C) -> 558
F72: Ellis County, Texas | G72: Dallas-Ft. Worth | H72: =_xlfn.XLOOKUP(G72,A:A,B:B) -> 288 | I72: =_xlfn.XLOOKUP(G72,A:A,C:C) -> 576
F73: Essex County, Massachusetts | G73: Boston | H73: =_xlfn.XLOOKUP(G73,A:A,B:B) -> 294 | I73: =_xlfn.XLOOKUP(G73,A:A,C:C) -> 588
F74: Essex County, New Jersey | G74: New York | H74: =_xlfn.XLOOKUP(G74,A:A,B:B) -> 379 | I74: =_xlfn.XLOOKUP(G74,A:A,C:C) -> 758
F75: Fairfax city County, Virginia | G75: Washington, D.C. | H75: =_xlfn.XLOOKUP(G75,A:A,B:B) -> 294 | I75: =_xlfn.XLOOKUP(G75,A:A,C:C) -> 588
F76: Fairfax county County, Virginia | G76: Washington, D.C. | H76: =_xlfn.XLOOKUP(G76,A:A,B:B) -> 294 | I76: =_xlfn.XLOOKUP(G76,A:A,C:C) -> 588
F77: Falls Church city County, Virginia | G77: Washington, D.C. | H77: =_xlfn.XLOOKUP(G77,A:A,B:B) -> 294 | I77: =_xlfn.XLOOKUP(G77,A:A,C:C) -> 588
F78: Fauquier County, Virginia | G78: Washington, D.C. | H78: =_xlfn.XLOOKUP(G78,A:A,B:B) -> 294 | I78: =_xlfn.XLOOKUP(G78,A:A,C:C) -> 588
F79: Fayette County, Georgia | G79: Atlanta | H79: =_xlfn.XLOOKUP(G79,A:A,B:B) -> 300 | I79: =_xlfn.XLOOKUP(G79,A:A,C:C) -> 600
F80: Florida | G80: South Region | H80: =_xlfn.XLOOKUP(G80,A:A,B:B) -> 242 | I80: =_xlfn.XLOOKUP(G80,A:A,C:C) -> 484
F81: Forsyth County, Georgia | G81: Atlanta | H81: =_xlfn.XLOOKUP(G81,A:A,B:B) -> 300 | I81: =_xlfn.XLOOKUP(G81,A:A,C:C) -> 600
F82: Fort Bend County, Texas | G82: Houston | H82: =_xlfn.XLOOKUP(G82,A:A,B:B) -> 312 | I82: =_xlfn.XLOOKUP(G82,A:A,C:C) -> 624
F83: Franklin County, Missouri | G83: St. Louis | H83: =_xlfn.XLOOKUP(G83,A:A,B:B) -> 244 | I83: =_xlfn.XLOOKUP(G83,A:A,C:C) -> 488
F84: Frederick County, Maryland | G84: Washington, D.C. | H84: =_xlfn.XLOOKUP(G84,A:A,B:B) -> 294 | I84: =_xlfn.XLOOKUP(G84,A:A,C:C) -> 588
F85: Fredericksburg city County, Virginia | G85: Washington, D.C. | H85: =_xlfn.XLOOKUP(G85,A:A,B:B) -> 294 | I85: =_xlfn.XLOOKUP(G85,A:A,C:C) -> 588
F86: Fulton County, Georgia | G86: Atlanta | H86: =_xlfn.XLOOKUP(G86,A:A,B:B) -> 300 | I86: =_xlfn.XLOOKUP(G86,A:A,C:C) -> 600
F87: Galveston County, Texas | G87: Houston | H87: =_xlfn.XLOOKUP(G87,A:A,B:B) -> 312 | I87: =_xlfn.XLOOKUP(G87,A:A,C:C) -> 624
F88: Geauga County, Ohio | G88: Cleveland | H88: =_xlfn.XLOOKUP(G88,A:A,B:B) -> 225 | I88: =_xlfn.XLOOKUP(G88,A:A,C:C) -> 450
F89: Georgia | G89: South Region | H89: =_xlfn.XLOOKUP(G89,A:A,B:B) -> 242 | I89: =_xlfn.XLOOKUP(G89,A:A,C:C) -> 484
F90: Gilpin County, Colorado | G90: Denver | H90: =_xlfn.XLOOKUP(G90,A:A,B:B) -> 279 | I90: =_xlfn.XLOOKUP(G90,A:A,C:C) -> 558
F91: Gloucester County, New Jersey | G91: Philadelphia | H91: =_xlfn.XLOOKUP(G91,A:A,B:B) -> 318 | I91: =_xlfn.XLOOKUP(G91,A:A,C:C) -> 636
F92: Grundy County, Illinois | G92: Chicago | H92: =_xlfn.XLOOKUP(G92,A:A,B:B) -> 265 | I92: =_xlfn.XLOOKUP(G92,A:A,C:C) -> 530
F93: Gwinnett County, Georgia | G93: Atlanta | H93: =_xlfn.XLOOKUP(G93,A:A,B:B) -> 300 | I93: =_xlfn.XLOOKUP(G93,A:A,C:C) -> 600
F94: Haralson County, Georgia | G94: Atlanta | H94: =_xlfn.XLOOKUP(G94,A:A,B:B) -> 300 | I94: =_xlfn.XLOOKUP(G94,A:A,C:C) -> 600
F95: Harford County, Maryland | G95: Baltimore | H95: =_xlfn.XLOOKUP(G95,A:A,B:B) -> 277 | I95: =_xlfn.XLOOKUP(G95,A:A,C:C) -> 554
F96: Harris County, Texas | G96: Houston | H96: =_xlfn.XLOOKUP(G96,A:A,B:B) -> 312 | I96: =_xlfn.XLOOKUP(G96,A:A,C:C) -> 624
F97: Hawaii | G97: West Region | H97: =_xlfn.XLOOKUP(G97,A:A,B:B) -> 264 | I97: =_xlfn.XLOOKUP(G97,A:A,C:C) -> 528
F98: Heard, Henry County, Georgia | G98: Atlanta | H98: =_xlfn.XLOOKUP(G98,A:A,B:B) -> 300 | I98: =_xlfn.XLOOKUP(G98,A:A,C:C) -> 600
F99: Hennepin County, Minnosota | G99: Minneapolis-St. Paul | H99: =_xlfn.XLOOKUP(G99,A:A,B:B) -> 214 | I99: =_xlfn.XLOOKUP(G99,A:A,C:C) -> 428
F100: Hernando County, Florida | G100: Tampa | H100: =_xlfn.XLOOKUP(G100,A:A,B:B) -> 297 | I100: =_xlfn.XLOOKUP(G100,A:A,C:C) -> 594
F101: Hillsborough County, Florida | G101: Tampa | H101: =_xlfn.XLOOKUP(G101,A:A,B:B) -> 297 | I101: =_xlfn.XLOOKUP(G101,A:A,C:C) -> 594
F102: Honolulu County, Hawaii | G102: Honolulu | H102: =_xlfn.XLOOKUP(G102,A:A,B:B) -> 243 | I102: =_xlfn.XLOOKUP(G102,A:A,C:C) -> 486
F103: Hood County, Texas | G103: Dallas-Ft. Worth | H103: =_xlfn.XLOOKUP(G103,A:A,B:B) -> 288 | I103: =_xlfn.XLOOKUP(G103,A:A,C:C) -> 576
F104: Howard County, Maryland | G104: Baltimore | H104: =_xlfn.XLOOKUP(G104,A:A,B:B) -> 277 | I104: =_xlfn.XLOOKUP(G104,A:A,C:C) -> 554
F105: Hudson County, New Jersey | G105: New York | H105: =_xlfn.XLOOKUP(G105,A:A,B:B) -> 379 | I105: =_xlfn.XLOOKUP(G105,A:A,C:C) -> 758
F106: Hunt County, Texas | G106: Dallas-Ft. Worth | H106: =_xlfn.XLOOKUP(G106,A:A,B:B) -> 288 | I106: =_xlfn.XLOOKUP(G106,A:A,C:C) -> 576
F107: Hunterdon County, New Jersey | G107: New York | H107: =_xlfn.XLOOKUP(G107,A:A,B:B) -> 379 | I107: =_xlfn.XLOOKUP(G107,A:A,C:C) -> 758
F108: Idaho | G108: West Region | H108: =_xlfn.XLOOKUP(G108,A:A,B:B) -> 264 | I108: =_xlfn.XLOOKUP(G108,A:A,C:C) -> 528
F109: Illinois | G109: Midwest Region | H109: =_xlfn.XLOOKUP(G109,A:A,B:B) -> 225 | I109: =_xlfn.XLOOKUP(G109,A:A,C:C) -> 450
F110: Indiana | G110: Midwest Region | H110: =_xlfn.XLOOKUP(G110,A:A,B:B) -> 225 | I110: =_xlfn.XLOOKUP(G110,A:A,C:C) -> 450
F111: Iowa | G111: Midwest Region | H111: =_xlfn.XLOOKUP(G111,A:A,B:B) -> 225 | I111: =_xlfn.XLOOKUP(G111,A:A,C:C) -> 450
F112: Isanti County, Minnosota | G112: Minneapolis-St. Paul | H112: =_xlfn.XLOOKUP(G112,A:A,B:B) -> 214 | I112: =_xlfn.XLOOKUP(G112,A:A,C:C) -> 428
F113: Jasper County, Georgia | G113: Atlanta | H113: =_xlfn.XLOOKUP(G113,A:A,B:B) -> 300 | I113: =_xlfn.XLOOKUP(G113,A:A,C:C) -> 600
F114: Jasper County, Indiana | G114: Chicago | H114: =_xlfn.XLOOKUP(G114,A:A,B:B) -> 265 | I114: =_xlfn.XLOOKUP(G114,A:A,C:C) -> 530
F115: Jefferson County, Colorado | G115: Denver | H115: =_xlfn.XLOOKUP(G115,A:A,B:B) -> 279 | I115: =_xlfn.XLOOKUP(G115,A:A,C:C) -> 558
F116: Jefferson County, Missouri | G116: St. Louis | H116: =_xlfn.XLOOKUP(G116,A:A,B:B) -> 244 | I116: =_xlfn.XLOOKUP(G116,A:A,C:C) -> 488
F117: Jersey County, Illinois | G117: St. Louis | H117: =_xlfn.XLOOKUP(G117,A:A,B:B) -> 244 | I117: =_xlfn.XLOOKUP(G117,A:A,C:C) -> 488
F118: Johnson County, Texas | G118: Dallas-Ft. Worth | H118: =_xlfn.XLOOKUP(G118,A:A,B:B) -> 288 | I118: =_xlfn.XLOOKUP(G118,A:A,C:C) -> 576
F119: Kane County, Illinois | G119: Chicago | H119: =_xlfn.XLOOKUP(G119,A:A,B:B) -> 265 | I119: =_xlfn.XLOOKUP(G119,A:A,C:C) -> 530
F120: Kansas | G120: Midwest Region | H120: =_xlfn.XLOOKUP(G120,A:A,B:B) -> 225 | I120: =_xlfn.XLOOKUP(G120,A:A,C:C) -> 450
F121: Kaufman County, Texas | G121: Dallas-Ft. Worth | H121: =_xlfn.XLOOKUP(G121,A:A,B:B) -> 288 | I121: =_xlfn.XLOOKUP(G121,A:A,C:C) -> 576
F122: Kendall County, Illinois | G122: Chicago | H122: =_xlfn.XLOOKUP(G122,A:A,B:B) -> 265 | I122: =_xlfn.XLOOKUP(G122,A:A,C:C) -> 530
F123: Kenosha County, Wisconsin | G123: Chicago | H123: =_xlfn.XLOOKUP(G123,A:A,B:B) -> 265 | I123: =_xlfn.XLOOKUP(G123,A:A,C:C) -> 530
F124: Kentucky | G124: South Region | H124: =_xlfn.XLOOKUP(G124,A:A,B:B) -> 242 | I124: =_xlfn.XLOOKUP(G124,A:A,C:C) -> 484
F125: King County, Washington | G125: Seattle | H125: =_xlfn.XLOOKUP(G125,A:A,B:B) -> 281 | I125: =_xlfn.XLOOKUP(G125,A:A,C:C) -> 562
F126: Kings County, New York | G126: New York | H126: =_xlfn.XLOOKUP(G126,A:A,B:B) -> 379 | I126: =_xlfn.XLOOKUP(G126,A:A,C:C) -> 758
F127: Lake County, Illinois | G127: Chicago | H127: =_xlfn.XLOOKUP(G127,A:A,B:B) -> 265 | I127: =_xlfn.XLOOKUP(G127,A:A,C:C) -> 530
F128: Lake County, Indiana | G128: Chicago | H128: =_xlfn.XLOOKUP(G128,A:A,B:B) -> 265 | I128: =_xlfn.XLOOKUP(G128,A:A,C:C) -> 530
F129: Lake County, Ohio | G129: Cleveland | H129: =_xlfn.XLOOKUP(G129,A:A,B:B) -> 225 | I129: =_xlfn.XLOOKUP(G129,A:A,C:C) -> 450
F130: Lamar County, Georgia | G130: Atlanta | H130: =_xlfn.XLOOKUP(G130,A:A,B:B) -> 300 | I130: =_xlfn.XLOOKUP(G130,A:A,C:C) -> 600
F131: Lapeer County, Michigan | G131: Detroit | H131: =_xlfn.XLOOKUP(G131,A:A,B:B) -> 315 | I131: =_xlfn.XLOOKUP(G131,A:A,C:C) -> 630
F132: Le Sueur County, Minnosota | G132: Minneapolis-St. Paul | H132: =_xlfn.XLOOKUP(G132,A:A,B:B) -> 214 | I132: =_xlfn.XLOOKUP(G132,A:A,C:C) -> 428
F133: Liberty County, Texas | G133: Houston | H133: =_xlfn.XLOOKUP(G133,A:A,B:B) -> 312 | I133: =_xlfn.XLOOKUP(G133,A:A,C:C) -> 624
F134: Lincoln County, Missouri | G134: St. Louis | H134: =_xlfn.XLOOKUP(G134,A:A,B:B) -> 244 | I134: =_xlfn.XLOOKUP(G134,A:A,C:C) -> 488
F135: Livingston County, Michigan | G135: Detroit | H135: =_xlfn.XLOOKUP(G135,A:A,B:B) -> 315 | I135: =_xlfn.XLOOKUP(G135,A:A,C:C) -> 630
F136: Lorain County, Ohio | G136: Cleveland | H136: =_xlfn.XLOOKUP(G136,A:A,B:B) -> 225 | I136: =_xlfn.XLOOKUP(G136,A:A,C:C) -> 450
F137: Los Angeles County, California | G137: Los Angeles | H137: =_xlfn.XLOOKUP(G137,A:A,B:B) -> 339 | I137: =_xlfn.XLOOKUP(G137,A:A,C:C) -> 678
F138: Loudoun County, Virginia | G138: Washington, D.C. | H138: =_xlfn.XLOOKUP(G138,A:A,B:B) -> 294 | I138: =_xlfn.XLOOKUP(G138,A:A,C:C) -> 588
F139: Louisiana | G139: South Region | H139: =_xlfn.XLOOKUP(G139,A:A,B:B) -> 242 | I139: =_xlfn.XLOOKUP(G139,A:A,C:C) -> 484
F140: Macomb County, Michigan | G140: Detroit | H140: =_xlfn.XLOOKUP(G140,A:A,B:B) -> 315 | I140: =_xlfn.XLOOKUP(G140,A:A,C:C) -> 630
F141: Macoupin County, Illinois | G141: St. Louis | H141: =_xlfn.XLOOKUP(G141,A:A,B:B) -> 244 | I141: =_xlfn.XLOOKUP(G141,A:A,C:C) -> 488
F142: Madison County, Illinois | G142: St. Louis | H142: =_xlfn.XLOOKUP(G142,A:A,B:B) -> 244 | I142: =_xlfn.XLOOKUP(G142,A:A,C:C) -> 488
F143: Maine | G143: Northeast Region | H143: =_xlfn.XLOOKUP(G143,A:A,B:B) -> 298 | I143: =_xlfn.XLOOKUP(G143,A:A,C:C) -> 596
F144: Manassas city County, Virginia | G144: Washington, D.C. | H144: =_xlfn.XLOOKUP(G144,A:A,B:B) -> 294 | I144: =_xlfn.XLOOKUP(G144,A:A,C:C) -> 588
F145: Manassas Park city County, Virginia | G145: Washington, D.C. | H145: =_xlfn.XLOOKUP(G145,A:A,B:B) -> 294 | I145: =_xlfn.XLOOKUP(G145,A:A,C:C) -> 588
F146: Maricopa County, Arizona | G146: Phoenix | H146: =_xlfn.XLOOKUP(G146,A:A,B:B) -> 271 | I146: =_xlfn.XLOOKUP(G146,A:A,C:C) -> 542
F147: Marin County, California | G147: San Francisco | H147: =_xlfn.XLOOKUP(G147,A:A,B:B) -> 301 | I147: =_xlfn.XLOOKUP(G147,A:A,C:C) -> 602
F148: Maryland | G148: South Region | H148: =_xlfn.XLOOKUP(G148,A:A,B:B) -> 242 | I148: =_xlfn.XLOOKUP(G148,A:A,C:C) -> 484
F149: Massachusetts | G149: Northeast Region | H149: =_xlfn.XLOOKUP(G149,A:A,B:B) -> 298 | I149: =_xlfn.XLOOKUP(G149,A:A,C:C) -> 596
F150: Matanuska-Susitna County, Alaska | G150: Anchorage | H150: =_xlfn.XLOOKUP(G150,A:A,B:B) -> 208 | I150: =_xlfn.XLOOKUP(G150,A:A,C:C) -> 416
F151: McHenry County, Illinois | G151: Chicago | H151: =_xlfn.XLOOKUP(G151,A:A,B:B) -> 265 | I151: =_xlfn.XLOOKUP(G151,A:A,C:C) -> 530
F152: Medina County, Ohio | G152: Cleveland | H152: =_xlfn.XLOOKUP(G152,A:A,B:B) -> 225 | I152: =_xlfn.XLOOKUP(G152,A:A,C:C) -> 450
F153: Meriwether County, Georgia | G153: Atlanta | H153: =_xlfn.XLOOKUP(G153,A:A,B:B) -> 300 | I153: =_xlfn.XLOOKUP(G153,A:A,C:C) -> 600
F154: Miami-Dade County, Florida | G154: Miami | H154: =_xlfn.XLOOKUP(G154,A:A,B:B) -> 364 | I154: =_xlfn.XLOOKUP(G154,A:A,C:C) -> 728
F155: Michigan | G155: Midwest Region | H155: =_xlfn.XLOOKUP(G155,A:A,B:B) -> 225 | I155: =_xlfn.XLOOKUP(G155,A:A,C:C) -> 450
F156: Middlesex County, Massachusetts | G156: Boston | H156: =_xlfn.XLOOKUP(G156,A:A,B:B) -> 294 | I156: =_xlfn.XLOOKUP(G156,A:A,C:C) -> 588
F157: Middlesex County, New Jersey | G157: New York | H157: =_xlfn.XLOOKUP(G157,A:A,B:B) -> 379 | I157: =_xlfn.XLOOKUP(G157,A:A,C:C) -> 758
F158: Mille Lacs County, Minnosota | G158: Minneapolis-St. Paul | H158: =_xlfn.XLOOKUP(G158,A:A,B:B) -> 214 | I158: =_xlfn.XLOOKUP(G158,A:A,C:C) -> 428
F159: Minnesota | G159: Midwest Region | H159: =_xlfn.XLOOKUP(G159,A:A,B:B) -> 225 | I159: =_xlfn.XLOOKUP(G159,A:A,C:C) -> 450
F160: Mississippi | G160: South Region | H160: =_xlfn.XLOOKUP(G160,A:A,B:B) -> 242 | I160: =_xlfn.XLOOKUP(G160,A:A,C:C) -> 484
F161: Missouri | G161: Midwest Region | H161: =_xlfn.XLOOKUP(G161,A:A,B:B) -> 225 | I161: =_xlfn.XLOOKUP(G161,A:A,C:C) -> 450
F162: Monmouth County, New Jersey | G162: New York | H162: =_xlfn.XLOOKUP(G162,A:A,B:B) -> 379 | I162: =_xlfn.XLOOKUP(G162,A:A,C:C) -> 758
F163: Monroe County, Illinois | G163: St. Louis | H163: =_xlfn.XLOOKUP(G163,A:A,B:B) -> 244 | I163: =_xlfn.XLOOKUP(G163,A:A,C:C) -> 488
F164: Montana | G164: West Region | H164: =_xlfn.XLOOKUP(G164,A:A,B:B) -> 264 | I164: =_xlfn.XLOOKUP(G164,A:A,C:C) -> 528
F165: Montgomery County, Maryland | G165: Washington, D.C. | H165: =_xlfn.XLOOKUP(G165,A:A,B:B) -> 294 | I165: =_xlfn.XLOOKUP(G165,A:A,C:C) -> 588
F166: Montgomery County, Pennsylvania | G166: Philadelphia | H166: =_xlfn.XLOOKUP(G166,A:A,B:B) -> 318 | I166: =_xlfn.XLOOKUP(G166,A:A,C:C) -> 636
F167: Montgomery County, Texas | G167: Houston | H167: =_xlfn.XLOOKUP(G167,A:A,B:B) -> 312 | I167: =_xlfn.XLOOKUP(G167,A:A,C:C) -> 624
F168: Morgan County, Georgia | G168: Atlanta | H168: =_xlfn.XLOOKUP(G168,A:A,B:B) -> 300 | I168: =_xlfn.XLOOKUP(G168,A:A,C:C) -> 600
F169: Morris County, New Jersey | G169: New York | H169: =_xlfn.XLOOKUP(G169,A:A,B:B) -> 379 | I169: =_xlfn.XLOOKUP(G169,A:A,C:C) -> 758
F170: Nassau County, New York | G170: New York | H170: =_xlfn.XLOOKUP(G170,A:A,B:B) -> 379 | I170: =_xlfn.XLOOKUP(G170,A:A,C:C) -> 758
F171: Nebraska | G171: Midwest Region | H171: =_xlfn.XLOOKUP(G171,A:A,B:B) -> 225 | I171: =_xlfn.XLOOKUP(G171,A:A,C:C) -> 450
F172: Nevada | G172: West Region | H172: =_xlfn.XLOOKUP(G172,A:A,B:B) -> 264 | I172: =_xlfn.XLOOKUP(G172,A:A,C:C) -> 528
F173: New Castle County, Delaware | G173: Philadelphia | H173: =_xlfn.XLOOKUP(G173,A:A,B:B) -> 318 | I173: =_xlfn.XLOOKUP(G173,A:A,C:C) -> 636
F174: New Hampshire | G174: Northeast Region | H174: =_xlfn.XLOOKUP(G174,A:A,B:B) -> 298 | I174: =_xlfn.XLOOKUP(G174,A:A,C:C) -> 596
F175: New Jersey | G175: Northeast Region | H175: =_xlfn.XLOOKUP(G175,A:A,B:B) -> 298 | I175: =_xlfn.XLOOKUP(G175,A:A,C:C) -> 596
F176: New Mexico | G176: West Region | H176: =_xlfn.XLOOKUP(G176,A:A,B:B) -> 264 | I176: =_xlfn.XLOOKUP(G176,A:A,C:C) -> 528
F177: New York | G177: Northeast Region | H177: =_xlfn.XLOOKUP(G177,A:A,B:B) -> 298 | I177: =_xlfn.XLOOKUP(G177,A:A,C:C) -> 596
F178: New York County, New York | G178: New York | H178: =_xlfn.XLOOKUP(G178,A:A,B:B) -> 379 | I178: =_xlfn.XLOOKUP(G178,A:A,C:C) -> 758
F179: Newton County, Georgia | G179: Atlanta | H179: =_xlfn.XLOOKUP(G179,A:A,B:B) -> 300 | I179: =_xlfn.XLOOKUP(G179,A:A,C:C) -> 600
F180: Newton County, Indiana | G180: Chicago | H180: =_xlfn.XLOOKUP(G180,A:A,B:B) -> 265 | I180: =_xlfn.XLOOKUP(G180,A:A,C:C) -> 530
F181: Norfolk County, Massachusetts | G181: Boston | H181: =_xlfn.XLOOKUP(G181,A:A,B:B) -> 294 | I181: =_xlfn.XLOOKUP(G181,A:A,C:C) -> 588
F182: North Carolina | G182: South Region | H182: =_xlfn.XLOOKUP(G182,A:A,B:B) -> 242 | I182: =_xlfn.XLOOKUP(G182,A:A,C:C) -> 484
F183: North Dakota | G183: Midwest Region | H183: =_xlfn.XLOOKUP(G183,A:A,B:B) -> 225 | I183: =_xlfn.XLOOKUP(G183,A:A,C:C) -> 450
F184: Oakland County, Michigan | G184: Detroit | H184: =_xlfn.XLOOKUP(G184,A:A,B:B) -> 315 | I184: =_xlfn.XLOOKUP(G184,A:A,C:C) -> 630
F185: Ocean County, New Jersey | G185: New York | H185: =_xlfn.XLOOKUP(G185,A:A,B:B) -> 379 | I185: =_xlfn.XLOOKUP(G185,A:A,C:C) -> 758
F186: Ohio | G186: Midwest Region | H186: =_xlfn.XLOOKUP(G186,A:A,B:B) -> 225 | I186: =_xlfn.XLOOKUP(G186,A:A,C:C) -> 450
F187: Oklahoma | G187: South Region | H187: =_xlfn.XLOOKUP(G187,A:A,B:B) -> 242 | I187: =_xlfn.XLOOKUP(G187,A:A,C:C) -> 484
F188: Orange County, California | G188: Los Angeles | H188: =_xlfn.XLOOKUP(G188,A:A,B:B) -> 339 | I188: =_xlfn.XLOOKUP(G188,A:A,C:C) -> 678
F189: Orange County, New York | G189: New York | H189: =_xlfn.XLOOKUP(G189,A:A,B:B) -> 379 | I189: =_xlfn.XLOOKUP(G189,A:A,C:C) -> 758
F190: Oregon | G190: West Region | H190: =_xlfn.XLOOKUP(G190,A:A,B:B) -> 264 | I190: =_xlfn.XLOOKUP(G190,A:A,C:C) -> 528
F191: Palm Beach County, Florida | G191: Miami | H191: =_xlfn.XLOOKUP(G191,A:A,B:B) -> 364 | I191: =_xlfn.XLOOKUP(G191,A:A,C:C) -> 728
F192: Park County, Colorado | G192: Denver | H192: =_xlfn.XLOOKUP(G192,A:A,B:B) -> 279 | I192: =_xlfn.XLOOKUP(G192,A:A,C:C) -> 558
F193: Parker County, Texas | G193: Dallas-Ft. Worth | H193: =_xlfn.XLOOKUP(G193,A:A,B:B) -> 288 | I193: =_xlfn.XLOOKUP(G193,A:A,C:C) -> 576
F194: Pasco County, Florida | G194: Tampa | H194: =_xlfn.XLOOKUP(G194,A:A,B:B) -> 297 | I194: =_xlfn.XLOOKUP(G194,A:A,C:C) -> 594
F195: Passaic County, New Jersey | G195: New York | H195: =_xlfn.XLOOKUP(G195,A:A,B:B) -> 379 | I195: =_xlfn.XLOOKUP(G195,A:A,C:C) -> 758
F196: Paulding County, Georgia | G196: Atlanta | H196: =_xlfn.XLOOKUP(G196,A:A,B:B) -> 300 | I196: =_xlfn.XLOOKUP(G196,A:A,C:C) -> 600
F197: Pennsylvania | G197: Northeast Region | H197: =_xlfn.XLOOKUP(G197,A:A,B:B) -> 298 | I197: =_xlfn.XLOOKUP(G197,A:A,C:C) -> 596
F198: Philadelphia County, Pennsylvania | G198: Philadelphia | H198: =_xlfn.XLOOKUP(G198,A:A,B:B) -> 318 | I198: =_xlfn.XLOOKUP(G198,A:A,C:C) -> 636
F199: Pickens County, Georgia | G199: Atlanta | H199: =_xlfn.XLOOKUP(G199,A:A,B:B) -> 300 | I199: =_xlfn.XLOOKUP(G199,A:A,C:C) -> 600
F200: Pierce County, Washington | G200: Seattle | H200: =_xlfn.XLOOKUP(G200,A:A,B:B) -> 281 | I200: =_xlfn.XLOOKUP(G200,A:A,C:C) -> 562
... 70 more rows
